bitfinex/quotes_SOLUSD_20251119
["timestamp","ask_amount","ask_price","bid_price","bid_amount"]
[1763539739841,3.93469243,140.86,140.82,9.78882769]
[1763539740047,3.93469243,140.86,140.84,9.78882769]
[1763539740552,0.7,140.86,140.84,9.78882769]
[1763539740737,3.93469243,140.86,140.84,9.78882769]
[1763539742359,3.93469243,140.86,140.83,9.78882769]
[1763539742760,3.93469243,140.86,140.83,0.67]
[1763539743135,0.7,140.86,140.83,0.67]
[1763539743348,3.93469243,140.86,140.83,0.67]
[1763539744254,5.97480365,140.93,140.77,0.71037863]
[1763539744255,3.23469243,140.84,140.77,0.67]
[1763539744455,3.23469243,140.81,140.77,0.67]
[1763539744845,3.23469243,140.78,140.75,0.67]
[1763539745158,3.23469243,140.78,140.76,9.78882769]
[1763539745549,3.23469243,140.78,140.76,0.67]
[1763539746246,3.93469243,140.78,140.74,10.45882769]
[1763539746451,3.93469243,140.78,140.76,9.78882769]
[1763539746854,3.23469243,140.78,140.76,9.78882769]
[1763539747056,3.23469243,140.79,140.76,0.67]
[1763539747547,3.93469243,140.79,140.76,0.67]
[1763539747742,3.23469243,140.79,140.76,0.67]
[1763539747940,18.12096,140.84,140.77,9.78882769]
[1763539747941,18.82096,140.84,140.77,9.78882769]
[1763539748165,3.23469243,140.81,140.77,9.78882769]
[1763539748363,3.93469243,140.81,140.77,10.45882769]
[1763539748754,3.23469243,140.8,140.77,10.45882769]
[1763539749256,3.23469243,140.81,140.77,10.45882769]
[1763539749457,3.93469243,140.8,140.77,10.45882769]
[1763539749648,3.93469243,140.8,140.76,10.45882769]
[1763539750363,3.93469243,140.79,140.76,10.45882769]
[1763539750559,3.23469243,140.79,140.76,10.45882769]
[1763539750867,3.93469243,140.78,140.75,9.78882769]
[1763539751064,3.23469243,140.76,140.74,9.78882769]
[1763539751242,3.93469243,140.77,140.74,9.78882769]
[1763539751645,3.93469243,140.77,140.74,0.67]
[1763539752258,3.93469243,140.78,140.75,9.78882769]
[1763539752457,3.23469243,140.78,140.75,9.78882769]
[1763539752639,3.23469243,140.78,140.75,10.45882769]
[1763539752835,3.93469243,140.79,140.75,10.45882769]
[1763539754761,3.23469243,140.78,140.75,10.45882769]
[1763539756768,2.07255747,140.78,140.75,10.45882769]
[1763539756974,2.07255747,140.78,140.75,0.67]
[1763539757179,2.07255747,140.8,140.77,9.78882769]
[1763539757386,2.07255747,140.79,140.77,9.78882769]
[1763539757669,2.07255747,140.78,140.75,0.67]
[1763539758240,2.77255747,140.78,140.74,27.90978769]
[1763539758465,2.77255747,140.77,140.74,27.90978769]
[1763539758949,2.77255747,140.77,140.74,28.57978769]
[1763539759351,2.07255747,140.77,140.74,28.57978769]
[1763539760149,2.07255747,140.77,140.74,10.45882769]
[1763539760471,2.77255747,140.78,140.74,10.45882769]
[1763539760887,2.07255747,140.77,140.72,2.07255747]
[1763539761041,2.07255747,140.76,140.72,28.61978769]
[1763539761244,2.07255747,140.74,140.7,0.91]
[1763539761588,2.07255747,140.74,140.71,9.78882769]
[1763539761879,26.41118988,140.8,140.7,0.2]
[1763539761880,2.07255747,140.72,140.7,0.2]
[1763539762075,18.12096,140.76,140.7,0.2]
[1763539762076,2.76255747,140.71,140.7,0.2]
[1763539762840,2.07255747,140.73,140.71,9.78882769]
[1763539763252,2.77255747,140.73,140.71,9.78882769]
[1763539763847,0.7,140.72,140.7,0.2]
[1763539764043,2.77255747,140.72,140.7,0.2]
[1763539764561,2.07255747,140.72,140.7,0.2]
[1763539764962,2.07255747,140.73,140.7,0.2]
[1763539765570,2.77255747,140.72,140.7,0.2]
[1763539765796,2.07255747,140.71,140.7,0.2]
[1763539765952,20.89351747,140.71,140.7,0.2]
[1763539767068,18.12096,140.69,140.68,0.2]
[1763539767271,20.19351747,140.69,140.68,0.2]
[1763539767467,20.89351747,140.69,140.68,0.2]
[1763539768683,0.7,140.69,140.68,9.98882769]
[1763539768862,2.77255747,140.69,140.68,9.98882769]
[1763539769067,20.89351747,140.69,140.68,9.98882769]
[1763539771382,2.77255747,140.69,140.68,0.2]
[1763539771549,20.89351747,140.69,140.68,0.2]
[1763539773383,18.12096,140.69,140.68,0.2]
[1763539773755,20.19351747,140.69,140.68,0.2]
[1763539773964,0.7,140.72,140.69,9.78882769]
[1763539774276,2.07255747,140.7,140.68,0.2]
[1763539774477,0.7,140.72,140.68,0.2]
[1763539774478,2.07255747,140.71,140.69,9.78882769]
[1763539774867,0.7,140.72,140.69,9.78882769]
[1763539774868,2.07255747,140.72,140.69,0.66]
[1763539775177,2.77255747,140.72,140.69,0.66]
[1763539775754,2.07255747,140.71,140.68,10.64882769]
[1763539775968,2.07255747,140.7,140.68,9.98882769]
[1763539776773,5.40324714,140.7,140.68,9.98882769]
[1763539778081,5.40324714,140.7,140.68,10.64882769]
[1763539778479,5.40324714,140.7,140.68,9.98882769]
[1763539779169,5.40324714,140.7,140.68,10.64882769]
[1763539781486,5.40324714,140.69,140.68,9.98882769]
[1763539782061,5.40324714,140.7,140.68,9.98882769]
[1763539782279,6.10324714,140.7,140.68,9.98882769]
[1763539783169,6.10324714,140.69,140.68,9.98882769]
[1763539784390,5.40324714,140.69,140.68,9.98882769]
[1763539785070,6.10324714,140.7,140.68,9.98882769]
[1763539786091,5.40324714,140.69,140.68,9.98882769]
[1763539786589,6.10324714,140.69,140.68,9.98882769]
[1763539786980,24.22420714,140.69,140.68,0.2]
[1763539788482,6.10324714,140.69,140.68,0.2]
[1763539794986,0.7,140.69,140.68,0.2]
[1763539795302,6.10324714,140.69,140.68,0.2]
[1763539796505,10.86779221,140.69,140.67,0.2]
[1763539796813,18.12096,140.67,140.66,0.2]
[1763539796988,20.19799784,140.67,140.66,0.2]
[1763539797176,20.89799784,140.67,140.66,0.2]
[1763539797378,2.77703784,140.67,140.66,0.2]
[1763539800192,2.77703784,140.67,140.65,0.2]
[1763539800387,2.77703784,140.67,140.63,0.2]
[1763539800388,18.12096,140.64,140.63,0.2]
[1763539800694,28.5061492,140.64,140.63,0.2]
[1763539800893,29.2061492,140.64,140.63,0.2]
[1763539801215,2.07703784,140.64,140.63,0.2]
[1763539801912,2.07703784,140.64,140.63,0.92]
[1763539802207,2.07703784,140.64,140.63,0.2]
[1763539803816,29.2061492,140.64,140.63,0.2]
[1763539804127,11.0851892,140.64,140.62,0.2]
[1763539804284,2.77703784,140.63,140.62,0.2]
[1763539804478,20.89799784,140.63,140.62,0.2]
[1763539805801,18.82096,140.63,140.62,0.2]
[1763539805986,20.89799784,140.63,140.62,0.2]
[1763539806805,18.82096,140.63,140.62,0.2]
[1763539806980,20.89799784,140.63,140.62,0.2]
[1763539807580,2.77703784,140.63,140.62,0.2]
[1763539807783,2.77703784,140.63,140.61,0.2]
[1763539807784,18.12096,140.62,140.61,0.2]
[1763539807986,20.89799784,140.62,140.61,0.2]
[1763539813415,18.82096,140.62,140.61,0.2]
[1763539813611,20.89799784,140.62,140.61,0.2]
[1763539816120,18.82096,140.62,140.61,0.2]
[1763539816418,20.19799784,140.62,140.61,0.92]
[1763539818827,3.24649438,140.62,140.61,0.92]
[1763539819196,3.24649438,140.62,140.61,0.2]
[1763539819408,3.94649438,140.62,140.61,0.2]
[1763539820498,3.94649438,140.62,140.6,0.2]
[1763539820692,3.90649438,140.61,140.6,0.2]
[1763539820909,22.02745438,140.61,140.6,0.2]
[1763539821123,22.02745438,140.61,140.59,0.2]
[1763539821330,3.90649438,140.6,140.59,0.2]
[1763539821501,3.90649438,140.6,140.57,0.2]
[1763539821502,3.24649438,140.58,140.57,0.2]
[1763539821924,3.90649438,140.58,140.57,0.2]
[1763539822892,0.66,140.58,140.57,0.2]
[1763539823093,3.90649438,140.58,140.57,0.2]
[1763539826522,3.90649438,140.58,140.54,0.1]
[1763539826523,18.12096,140.55,140.54,0.1]
[1763539826740,5.42211903,140.57,140.54,0.81]
[1763539826909,3.24649438,140.55,140.54,0.81]
[1763539828320,3.24649438,140.57,140.54,0.81]
[1763539828529,0.65,140.63,140.54,0.81]
[1763539828726,3.24649438,140.58,140.54,0.81]
[1763539829023,5.95088388,140.63,140.54,4.05649438]
[1763539829024,3.24649438,140.59,140.54,4.05649438]
[1763539829226,3.24649438,140.59,140.55,9.78882769]
[1763539829416,3.24649438,140.59,140.55,10.49882769]
[1763539829606,3.24649438,140.59,140.57,9.78882769]
[1763539830014,3.24649438,140.59,140.58,10.49882769]
[1763539830722,18.77096,140.63,140.58,10.49882769]
[1763539830925,18.77096,140.63,140.59,0.71]
[1763539831112,3.24649438,140.6,140.59,0.71]
[1763539835140,3.24649438,140.6,140.58,10.49882769]
[1763539835436,3.24649438,140.59,140.58,10.49882769]
[1763539840825,18.12096,140.63,140.59,9.78882769]
[1763539841144,3.24649438,140.6,140.56,9.78882769]
[1763539841514,3.24649438,140.6,140.57,0.71]
[1763539842140,3.24649438,140.59,140.57,0.71]
[1763539842938,3.24649438,140.58,140.57,10.49882769]
[1763539843236,3.24649438,140.58,140.57,9.78882769]
[1763539843413,3.24649438,140.58,140.57,10.49882769]
[1763539844433,4.79096454,140.61,140.58,9.78882769]
[1763539844638,3.24649438,140.6,140.58,0.71]
[1763539844836,3.24649438,140.6,140.59,10.49882769]
[1763539850945,18.12096,140.62,140.6,9.78882769]
[1763539851145,21.36745438,140.61,140.6,0.69]
[1763539854853,0.69,140.63,140.6,0.69]
[1763539855060,3.24649438,140.61,140.6,0.69]
[1763539855837,3.24649438,140.61,140.6,10.47882769]
[1763539856031,3.24649438,140.61,140.6,9.78882769]
[1763539856558,3.24649438,140.61,140.6,10.47882769]
[1763539857862,0.69,140.63,140.6,10.47882769]
[1763539858058,0.69,140.63,140.61,0.69]
[1763539858059,5.32783241,140.63,140.61,0.69]
[1763539858445,3.24649438,140.62,140.6,10.47882769]
[1763539858644,3.24649438,140.61,140.6,10.47882769]
[1763539860948,0.69,140.63,140.6,10.47882769]
[1763539861159,3.24649438,140.61,140.6,10.47882769]
[1763539861738,3.24649438,140.62,140.61,9.78882769]
[1763539861953,3.24649438,140.62,140.61,10.47882769]
[1763539862869,0.69,140.66,140.61,10.47882769]
[1763539863056,3.24649438,140.63,140.62,10.47882769]
[1763539864341,3.24649438,140.63,140.62,9.78882769]
[1763539864544,18.81096,140.65,140.62,9.78882769]
[1763539864745,3.24649438,140.63,140.54,0.1]
[1763539864981,3.24649438,140.58,140.57,0.69]
[1763539865146,3.24649438,140.58,140.57,9.78882769]
[1763539866042,18.12096,140.6,140.57,10.47882769]
[1763539866243,18.12096,140.6,140.58,0.69]
[1763539866668,18.12096,140.62,140.58,0.69]
[1763539866971,18.12096,140.6,140.58,0.69]
[1763539867371,3.24649438,140.59,140.58,10.47882769]
[1763539867575,3.24649438,140.59,140.54,0.1]
[1763539867746,0.69,140.59,140.57,9.78882769]
[1763539867948,3.24649438,140.58,140.57,9.78882769]
[1763539869268,3.24649438,140.58,140.55,9.78882769]
[1763539869269,3.93649438,140.58,140.55,9.78882769]
[1763539869468,3.24649438,140.56,140.55,9.78882769]
[1763539869958,3.24649438,140.57,140.55,0.69]
[1763539872675,18.12096,140.61,140.55,0.69]
[1763539872676,3.24649438,140.56,140.55,0.69]
[1763539872863,3.24649438,140.59,140.56,9.78882769]
[1763539873254,0.69,140.6,140.57,10.47882769]
[1763539873459,3.24649438,140.58,140.57,9.78882769]
[1763539873874,3.24649438,140.58,140.56,9.78882769]
[1763539874367,3.24649438,140.58,140.56,0.69]
[1763539874873,3.24649438,140.57,140.56,0.69]
[1763539875180,3.24649438,140.58,140.56,0.69]
[1763539876265,3.24649438,140.59,140.57,9.78882769]
[1763539876459,3.24649438,140.59,140.57,10.47882769]
[1763539877176,3.24649438,140.58,140.57,9.78882769]
[1763539878880,2.07878952,140.58,140.57,9.78882769]
[1763539879271,2.07878952,140.58,140.57,0.69]
[1763539879473,0.69,140.6,140.57,0.69]
[1763539879680,2.07878952,140.59,140.57,0.69]
[1763539879859,2.07878952,140.59,140.58,9.78882769]
[1763539880380,2.07878952,140.59,140.58,0.72]
[1763539880560,2.07878952,140.59,140.55,9.78882769]
[1763539880760,2.07878952,140.59,140.56,0.72]
[1763539880955,6.63286532,140.66,140.58,2.07878952]
[1763539881178,2.07878952,140.64,140.58,2.07878952]
[1763539881380,2.07878952,140.64,140.6,9.78882769]
[1763539881779,2.07878952,140.65,140.61,0.72]
[1763539882174,18.79096,140.68,140.62,9.78882769]
[1763539882362,2.07878952,140.66,140.62,9.78882769]
[1763539882557,2.07878952,140.66,140.64,9.78882769]
[1763539883259,2.07878952,140.66,140.64,0.69]
[1763539884280,2.74878952,140.67,140.64,0.69]
[1763539884482,2.07878952,140.67,140.64,0.69]
[1763539884687,2.07878952,140.68,140.64,0.69]
[1763539884979,2.74878952,140.68,140.64,0.69]
[1763539885197,0.67,140.7,140.64,0.69]
[1763539885385,7.39731274,140.69,140.65,9.78882769]
[1763539885683,18.12096,140.68,140.65,9.78882769]
[1763539885881,18.12096,140.68,140.67,9.78882769]
[1763539886484,2.07878952,140.69,140.67,0.69]
[1763539886683,18.12096,140.68,140.67,0.69]
[1763539886989,18.12096,140.68,140.65,9.78882769]
[1763539887199,2.07878952,140.67,140.65,10.47882769]
[1763539888264,20.19974952,140.68,140.65,10.47882769]
[1763539888885,20.19974952,140.68,140.65,0.69]
[1763539889866,2.07878952,140.68,140.65,0.69]
[1763539890394,2.07878952,140.7,140.66,9.78882769]
[1763539890804,2.07878952,140.7,140.68,9.78882769]
[1763539891300,2.07878952,140.7,140.68,0.69]
[1763539891588,2.74878952,140.7,140.66,10.47882769]
[1763539891800,2.74878952,140.7,140.68,9.78882769]
[1763539891979,0.67,140.72,140.68,9.78882769]
[1763539892289,2.07878952,140.7,140.68,0.69]
[1763539893388,2.07878952,140.69,140.64,2.07878952]
[1763539893695,2.07878952,140.69,140.68,9.78882769]
[1763539893992,2.74878952,140.69,140.65,10.47882769]
[1763539894180,26.43611808,140.72,140.65,10.47882769]
[1763539894181,2.07878952,140.68,140.65,10.47882769]
[1763539894491,2.07878952,140.68,140.67,9.78882769]
[1763539894781,2.07878952,140.69,140.67,9.78882769]
[1763539895364,2.07878952,140.69,140.67,0.69]
[1763539895768,2.07878952,140.69,140.67,9.78882769]
[1763539895966,2.07878952,140.68,140.67,9.78882769]
[1763539896515,2.74878952,140.68,140.64,0.69]
[1763539896804,18.79096,140.69,140.61,0.69]
[1763539896978,2.07878952,140.68,140.63,9.78882769]
[1763539897295,2.07878952,140.67,140.63,9.78882769]
[1763539897475,2.07878952,140.67,140.64,0.69]
[1763539898272,18.12096,140.69,140.64,0.69]
[1763539898469,2.74878952,140.69,140.65,9.78882769]
[1763539898992,2.74878952,140.69,140.67,9.78882769]
[1763539899479,2.07878952,140.68,140.67,9.78882769]
[1763539900795,2.74878952,140.69,140.67,9.78882769]
[1763539900992,2.07878952,140.7,140.67,0.69]
[1763539901479,2.74878952,140.7,140.67,0.69]
[1763539901682,2.07878952,140.7,140.67,0.69]
[1763539901992,2.74878952,140.7,140.67,0.69]
[1763539903195,2.07878952,140.69,140.68,9.78882769]
[1763539903397,2.74878952,140.69,140.68,9.78882769]
[1763539903595,2.74878952,140.69,140.66,9.78882769]
[1763539903801,2.07878952,140.68,140.66,9.78882769]
[1763539904098,2.07878952,140.68,140.66,0.69]
[1763539904294,0.67,140.69,140.66,0.69]
[1763539904295,2.74878952,140.69,140.66,0.69]
[1763539905296,2.07878952,140.69,140.66,0.69]
[1763539907893,0.67,140.71,140.66,10.47882769]
[1763539908090,2.07878952,140.7,140.66,10.47882769]
[1763539908285,2.07878952,140.7,140.68,9.78882769]
[1763539908490,2.74878952,140.7,140.68,9.78882769]
[1763539908990,2.07878952,140.69,140.68,9.78882769]
[1763539909305,2.74878952,140.69,140.65,9.78882769]
[1763539909510,8.31515808,140.72,140.65,9.78882769]
[1763539909511,2.77878952,140.68,140.65,10.44882769]
[1763539910007,18.12096,140.71,140.63,9.78882769]
[1763539910196,2.07878952,140.68,140.67,9.78882769]
[1763539910388,2.07878952,140.68,140.65,9.78882769]
[1763539910594,2.77878952,140.67,140.65,9.78882769]
[1763539910903,2.07878952,140.66,140.63,0.66]
[1763539911090,2.77878952,140.67,140.63,0.66]
[1763539912103,2.07878952,140.66,140.63,0.66]
[1763539913508,2.77878952,140.67,140.64,9.78882769]
[1763539914107,2.07878952,140.67,140.64,9.78882769]
[1763539914305,2.77878952,140.67,140.64,0.66]
[1763539916122,18.12096,140.69,140.64,0.66]
[1763539916410,2.77878952,140.68,140.64,10.44882769]
[1763539916984,2.77878952,140.68,140.66,9.78882769]
[1763539917284,2.07878952,140.68,140.64,9.78882769]
[1763539917520,2.77878952,140.67,140.64,9.78882769]
[1763539917811,2.77878952,140.67,140.64,0.66]
[1763539918106,18.12096,140.69,140.66,9.78882769]
[1763539918107,2.77878952,140.68,140.66,9.78882769]
[1763539918289,2.77878952,140.68,140.63,9.78882769]
[1763539918614,2.77878952,140.68,140.63,10.44882769]
[1763539918787,2.77878952,140.68,140.64,0.66]
[1763539918991,2.07878952,140.68,140.64,0.66]
[1763539919191,2.77878952,140.68,140.64,0.66]
[1763539919402,2.07878952,140.68,140.64,0.66]
[1763539919710,0.7,140.67,140.64,0.66]
[1763539920109,2.77878952,140.68,140.64,0.66]
[1763539920300,0.7,140.67,140.64,0.66]
[1763539920799,2.77878952,140.67,140.64,0.66]
[1763539921922,2.07878952,140.65,140.6,0.66]
[1763539922214,2.07878952,140.65,140.61,9.78882769]
[1763539922526,0.7,140.64,140.61,10.44882769]
[1763539924230,2.77878952,140.64,140.61,10.44882769]
[1763539924404,2.07878952,140.62,140.59,9.78882769]
[1763539924716,2.07878952,140.62,140.59,10.44882769]
[1763539924916,2.77878952,140.62,140.59,10.44882769]
[1763539925312,2.77878952,140.62,140.57,9.78882769]
[1763539925313,2.07878952,140.6,140.57,9.78882769]
[1763539925610,2.07878952,140.6,140.57,10.44882769]
[1763539925999,2.77878952,140.6,140.57,10.44882769]
[1763539926202,2.07878952,140.59,140.57,9.78882769]
[1763539926407,2.07878952,140.58,140.57,9.78882769]
[1763539926615,2.77878952,140.58,140.54,0.1]
[1763539926813,2.07878952,140.56,140.55,9.78882769]
[1763539926992,2.07878952,140.56,140.54,0.1]
[1763539927195,2.77878952,140.55,140.54,0.1]
[1763539927604,2.07878952,140.55,140.54,0.1]
[1763539928000,2.77878952,140.56,140.54,0.1]
[1763539929116,2.07878952,140.55,140.54,0.1]
[1763539930403,2.07878952,140.56,140.54,9.88882769]
[1763539931419,2.77878952,140.56,140.54,9.88882769]
[1763539931608,2.07878952,140.56,140.54,9.88882769]
[1763539932115,2.77878952,140.56,140.54,9.88882769]
[1763539933822,0.7,140.58,140.55,9.78882769]
[1763539934028,18.12096,140.61,140.55,9.78882769]
[1763539934193,9.88882769,140.63,140.55,9.78882769]
[1763539934194,2.07878952,140.59,140.57,9.78882769]
[1763539934716,18.12096,140.61,140.55,10.44882769]
[1763539934717,2.77878952,140.58,140.55,10.44882769]
[1763539935094,2.07878952,140.58,140.55,10.44882769]
[1763539935298,2.07878952,140.58,140.55,0.66]
[1763539935493,2.07878952,140.58,140.57,9.78882769]
[1763539935720,2.77878952,140.59,140.57,9.78882769]
[1763539936724,18.12096,140.61,140.56,9.78882769]
[1763539936725,2.07878952,140.6,140.56,9.78882769]
[1763539936901,2.07878952,140.6,140.58,9.78882769]
[1763539937108,2.77878952,140.61,140.58,9.78882769]
[1763539937316,2.77878952,140.61,140.58,0.66]
[1763539937913,18.12096,140.64,140.54,0.1]
[1763539938114,2.07878952,140.59,140.58,9.78882769]
[1763539938302,2.07878952,140.59,140.56,9.78882769]
[1763539938505,0.7,140.62,140.58,9.78882769]
[1763539938700,2.07878952,140.6,140.58,9.78882769]
[1763539938904,0.7,140.62,140.58,9.78882769]
[1763539938905,3.24669183,140.59,140.58,9.78882769]
[1763539939225,3.24669183,140.6,140.56,0.66]
[1763539939822,3.90669183,140.6,140.56,0.66]
[1763539940010,3.24669183,140.6,140.56,0.66]
[1763539940523,3.90669183,140.6,140.56,0.66]
[1763539940721,3.90669183,140.59,140.55,0.7]
[1763539941019,3.24669183,140.58,140.54,10.58882769]
[1763539941216,3.90669183,140.58,140.54,10.58882769]
[1763539941412,3.24669183,140.58,140.55,0.7]
[1763539941618,3.90669183,140.58,140.55,0.7]
[1763539941819,3.24669183,140.58,140.55,0.7]
[1763539942021,0.66,140.61,140.55,0.7]
[1763539942347,3.90669183,140.62,140.56,13.03551952]
[1763539942710,0.66,140.63,140.58,9.78882769]
[1763539943025,0.66,140.66,140.61,3.24669183]
[1763539943328,3.90669183,140.66,140.62,9.78882769]
[1763539943522,3.90669183,140.66,140.62,10.46882769]
[1763539944527,21.36765183,140.72,140.62,10.46882769]
[1763539944528,3.93669183,140.65,140.62,10.46882769]
[1763539945229,0.69,140.65,140.62,10.46882769]
[1763539945527,3.93669183,140.65,140.62,10.46882769]
[1763539946032,3.24669183,140.65,140.62,10.46882769]
[1763539946710,3.93669183,140.66,140.62,10.46882769]
[1763539948330,0.69,140.66,140.64,9.78882769]
[1763539948623,0.69,140.66,140.63,0.68]
[1763539948624,3.24669183,140.65,140.62,10.46882769]
[1763539949004,3.93669183,140.64,140.61,0.68]
[1763539949206,3.24669183,140.65,140.61,0.68]
[1763539949631,3.24669183,140.66,140.61,0.68]
[1763539949801,3.93669183,140.66,140.61,0.68]
[1763539950008,3.24669183,140.66,140.62,9.78882769]
[1763539950307,3.24669183,140.67,140.62,9.78882769]
[1763539950505,3.24669183,140.67,140.64,9.78882769]
[1763539950915,0.69,140.66,140.64,9.78882769]
[1763539951235,3.24669183,140.65,140.64,9.78882769]
[1763539951613,3.93669183,140.66,140.64,9.78882769]
[1763539951831,3.24669183,140.66,140.64,9.78882769]
[1763539952011,3.93669183,140.66,140.64,9.78882769]
[1763539952831,3.24669183,140.66,140.64,0.68]
[1763539953030,3.24669183,140.65,140.64,9.78882769]
[1763539954019,3.93669183,140.66,140.64,9.78882769]
[1763539955848,0.69,140.68,140.65,9.78882769]
[1763539956033,3.24669183,140.68,140.65,10.46882769]
[1763539956229,3.24669183,140.68,140.66,0.68]
[1763539956920,3.24669183,140.68,140.67,9.78882769]
[1763539957431,3.93669183,140.68,140.64,10.46882769]
[1763539957835,3.24669183,140.68,140.65,0.68]
[1763539959336,3.93669183,140.68,140.65,0.68]
[1763539959715,3.24669183,140.68,140.65,0.68]
[1763539959916,18.81096,140.69,140.65,0.68]
[1763539960116,3.93669183,140.68,140.65,0.68]
[1763539961635,3.93669183,140.68,140.66,9.78882769]
[1763539964012,3.24669183,140.68,140.66,0.68]
[1763539964221,3.24669183,140.7,140.67,0.68]
[1763539964633,3.93669183,140.7,140.67,0.68]
[1763539965012,3.24669183,140.7,140.67,0.68]
[1763539965747,3.93669183,140.7,140.67,0.68]
[1763539967346,3.24669183,140.69,140.67,0.68]
[1763539969343,3.24669183,140.69,140.65,10.46882769]
[1763539969640,18.12096,140.72,140.65,9.78882769]
[1763539969641,3.24669183,140.67,140.65,9.78882769]
[1763539970220,3.24669183,140.67,140.65,0.72]
[1763539970953,3.24669183,140.68,140.65,0.72]
[1763539971122,3.95669183,140.68,140.65,0.72]
[1763539971838,3.24669183,140.68,140.65,0.72]
[1763539972048,3.95669183,140.68,140.65,0.72]
[1763539975439,3.24669183,140.67,140.65,0.72]
[1763539976857,3.95669183,140.66,140.63,0.72]
[1763539977349,3.24669183,140.64,140.63,9.78882769]
[1763539978535,3.24669183,140.65,140.61,9.78882769]
[1763539978930,3.95669183,140.65,140.63,9.78882769]
[1763539979260,3.24669183,140.64,140.63,9.78882769]
[1763539979552,3.95669183,140.65,140.63,9.78882769]
[1763539979764,3.24669183,140.64,140.6,0.72]
[1763539980252,3.95669183,140.64,140.6,0.72]
[1763539981048,0.71,140.66,140.62,9.78882769]
[1763539981255,3.24669183,140.67,140.62,13.03551952]
[1763539981576,3.24669183,140.7,140.66,9.78882769]
[1763539981735,4.15669183,140.73,140.68,3.24669183]
[1763539981940,4.15669183,140.73,140.69,9.78882769]
[1763539982248,3.95669183,140.72,140.69,10.50882769]
[1763539982636,3.24669183,140.71,140.69,9.78882769]
[1763539982830,18.83096,140.72,140.69,10.50882769]
[1763539983047,3.24669183,140.71,140.69,10.50882769]
[1763539985740,3.95669183,140.72,140.69,10.50882769]
[1763539986960,3.24669183,140.71,140.67,9.78882769]
[1763539987168,3.95669183,140.71,140.69,9.78882769]
[1763539991758,3.24669183,140.71,140.69,9.78882769]
[1763539991954,3.24669183,140.71,140.69,0.72]
[1763539992791,3.24669183,140.72,140.7,9.78882769]
[1763539993074,3.20804698,140.72,140.7,9.78882769]
[1763539993284,3.95669183,140.72,140.7,9.78882769]
[1763539993446,3.24669183,140.71,140.7,9.78882769]
[1763539993782,3.95669183,140.71,140.69,9.78882769]
[1763539994096,0.2,140.73,140.7,3.96669183]
[1763539994284,0.2,140.73,140.72,9.78882769]
[1763539994659,0.2,140.73,140.72,10.50882769]
[1763540001294,0.2,140.73,140.72,9.78882769]
[1763540001786,0.2,140.73,140.72,10.45882769]
[1763540006300,0.2,140.73,140.72,12.53198442]
[1763540008789,0.2,140.73,140.72,10.45882769]
[1763540008986,0.2,140.73,140.72,12.53198442]
[1763540010800,2.98315673,140.73,140.67,0.69]
[1763540010973,2.98315673,140.73,140.69,9.78882769]
[1763540011174,0.71,140.72,140.69,9.78882769]
[1763540011385,0.71,140.72,140.67,5.61246399]
[1763540011386,2.78315673,140.72,140.67,5.61246399]
[1763540011601,0.71,140.71,140.68,10.47882769]
[1763540012581,2.27315673,140.73,140.68,2.07315673]
[1763540012775,2.98315673,140.73,140.7,9.78882769]
[1763540012988,0.71,140.72,140.7,9.78882769]
[1763540013187,0.71,140.72,140.68,2.76315673]
[1763540014189,2.78315673,140.72,140.69,9.78882769]
[1763540015282,0.71,140.72,140.69,9.78882769]
[1763540015610,0.71,140.72,140.69,10.47882769]
[1763540017025,0.71,140.72,140.69,9.78882769]
[1763540017212,2.78315673,140.72,140.68,9.78882769]
[1763540017505,2.78315673,140.72,140.68,10.47882769]
[1763540017887,0.71,140.71,140.68,10.47882769]
[1763540018401,2.78315673,140.72,140.68,10.47882769]
[1763540019302,0.71,140.71,140.68,10.47882769]
[1763540020109,0.71,140.71,140.68,9.78882769]
[1763540020285,2.78315673,140.71,140.68,10.47882769]
[1763540020608,0.71,140.71,140.68,10.47882769]
[1763540022910,2.07315673,140.7,140.67,9.78882769]
[1763540023215,2.07315673,140.7,140.66,10.47882769]
[1763540023409,0.71,140.69,140.66,10.47882769]
[1763540024509,0.71,140.71,140.67,2.76315673]
[1763540025010,0.71,140.71,140.69,9.78882769]
[1763540025911,2.78315673,140.72,140.69,0.69]